bitfinex/quotes_ETHUSD_20250626
["timestamp","ask_amount","ask_price","bid_price","bid_amount"]
[1750935463744,0.8124,2452.6,2452.5,4.07747196]
[1750935464246,10.8323,2452.9,2452.6,4.07719562]
[1750935464441,0.8323,2452.9,2452.6,4.07719562]
[1750935464655,0.8323,2452.9,2452.7,4.07705808]
[1750935466236,0.3119537,2453.1,2452.6,6.962]
[1750935466425,0.2032,2452.8,2452.6,6.962]
[1750935466767,0.2032,2452.8,2452.6,11.03926794]
[1750935466977,0.2032,2452.8,2452.7,4.07713947]
[1750935468272,0.2032,2452.8,2452.7,4.84403947]
[1750935468444,0.2032,2453.0,2452.9,4.07673114]
[1750935468830,0.2032,2453.0,2452.9,11.02973114]
[1750935470099,0.1087537,2453.1,2453.0,4.07664084]
[1750935473382,0.1087537,2453.1,2453.0,6.941]
[1750935474387,0.1087537,2453.1,2452.9,6.937]
[1750935474583,0.2032,2453.0,2452.9,6.937]
[1750935475267,0.55,2452.9,2451.9,9.782]
[1750935475460,11.09170992,2453.1,2452.6,4.07728153]
[1750935475461,0.55,2453.0,2452.6,4.07728153]
[1750935475662,1.65917099,2453.0,2452.7,4.07702902]
[1750935476093,0.55,2453.0,2452.7,4.07702902]
[1750935476295,0.9028537,2453.1,2452.3,11.86989191]
[1750935476463,0.9028537,2453.1,2452.7,4.07702709]
[1750935476665,0.9028537,2453.1,2452.6,6.965]
[1750935476980,0.55,2453.0,2452.6,6.963]
[1750935477190,0.55,2453.0,2452.5,6.963]
[1750935477571,0.55,2452.8,2452.2,4.0779708]
[1750935477771,0.55,2452.8,2452.3,4.07773844]
[1750935478376,1.70076562,2452.8,2452.2,4.07797006]
[1750935478577,1.70076562,2452.8,2452.1,11.04003504]
[1750935478987,1.70076562,2452.8,2452.2,6.971]
[1750935479206,0.7931,2452.7,2451.9,10.5709]
[1750935479414,0.55,2452.6,2452.0,6.967]
[1750935479614,0.55,2452.6,2452.0,11.04513851]
[1750935479816,0.79938656,2452.6,2451.8,1.911]
[1750935479978,0.79938656,2452.6,2451.9,4.07844178]
[1750935480319,0.79938656,2452.6,2452.0,4.07829224]
[1750935480682,0.79938656,2452.6,2451.6,7.64519435]
[1750935480880,0.55,2452.4,2451.8,6.966]
[1750935482515,0.55,2452.4,2451.8,11.04456332]
[1750935482920,0.55,2452.4,2451.9,4.07846757]
[1750935483281,0.55,2452.4,2451.9,4.07839354]
[1750935483514,0.55,2452.4,2451.8,6.966]
[1750935483822,0.7885,2452.5,2451.8,6.966]
[1750935483823,0.7885,2452.5,2452.2,4.07786954]
[1750935484793,13.83506562,2452.8,2452.1,0.7827]
[1750935484985,13.83506562,2452.8,2452.3,4.07771261]
[1750935484986,1.38350656,2452.7,2452.3,4.07771261]
[1750935485219,1.38350656,2452.7,2452.4,4.07756666]
[1750935485406,0.2032,2452.5,2452.4,4.07756666]
[1750935486931,10.7733,2452.8,2452.5,4.07740355]
[1750935487107,0.2032,2452.7,2452.5,4.07740355]
[1750935487627,0.2032,2452.7,2452.6,4.07730571]
[1750935487801,0.2032,2452.7,2452.5,4.07738016]
[1750935488583,0.2032,2452.7,2452.2,7.1582]
[1750935488811,0.7733,2452.8,2452.2,6.946]
[1750935489012,0.2032,2452.5,2452.2,6.946]
[1750935489223,0.55,2452.7,2452.1,11.02405021]
[1750935489515,0.2032,2452.3,2452.1,11.02406905]
[1750935489717,0.2032,2452.3,2452.1,6.946]
[1750935489922,0.8016,2452.2,2451.8,6.945]
[1750935490097,0.2032,2452.1,2451.8,6.945]
[1750935490288,0.2032,2452.1,2451.8,11.02353204]
[1750935490586,0.2032,2452.1,2451.9,4.07842305]
[1750935491703,0.2032,2452.1,2451.8,6.945]
[1750935491891,0.2032,2452.1,2452.0,4.07830342]
[1750935495708,0.7762,2452.4,2452.3,4.07780451]
[1750935495909,0.2032,2452.3,2452.1,4.07812158]
[1750935496107,0.2032,2452.3,2452.2,4.07784777]
[1750935499698,0.2032,2452.3,2452.1,11.01012158]
[1750935499699,0.7565,2452.7,2452.3,4.07779662]
[1750935499899,0.7565,2452.7,2452.2,4.07794872]
[1750935499900,0.2032,2452.4,2452.2,4.07794872]
[1750935500235,0.2032,2452.4,2452.3,4.07780451]
[1750935504838,0.2032,2452.7,2452.6,4.07721219]
[1750935505043,0.2032,2452.7,2452.6,10.99321219]
[1750935506036,0.7837,2453.2,2452.6,6.916]
[1750935506241,0.2032,2452.8,2452.6,10.99322413]
[1750935506738,0.2032,2452.8,2452.7,4.07713947]
[1750935507955,0.1087537,2453.1,2453.0,4.07664084]
[1750935509341,0.1087537,2453.1,2453.0,0.7756]
[1750935509540,0.1087537,2453.1,2453.0,6.916]
[1750935509848,0.3119537,2453.1,2453.0,6.916]
[1750935510435,0.3119537,2453.1,2452.7,0.2032]
[1750935510615,0.1087537,2453.1,2452.8,6.916]
[1750935510816,0.2032,2452.9,2452.8,6.916]
[1750935511035,0.2032,2452.9,2452.7,6.917]
[1750935511238,0.2032,2452.8,2452.7,6.917]
[1750935513643,0.2032,2452.8,2452.3,6.15990747]
[1750935513849,0.2032,2452.8,2452.5,6.915]
[1750935515744,0.2032,2452.8,2452.5,10.99237733]
[1750935517043,0.2032,2452.8,2452.5,6.915]
[1750935517745,0.2032,2452.8,2452.3,6.15996205]
[1750935517950,0.2032,2452.8,2452.4,6.915]
[1750935518149,0.2032,2452.8,2452.4,10.99258994]
[1750935518950,1.313,2452.7,2452.3,0.2032]
[1750935519119,0.2032,2452.3,2452.0,4.07828475]
[1750935519451,0.2032,2452.3,2452.1,4.07798266]
[1750935519871,0.2032,2452.3,2452.2,4.0779708]
[1750935522164,0.2032,2452.3,2452.2,10.9929708]
[1750935522351,0.2032,2452.5,2452.3,4.07769536]
[1750935522522,0.2032,2452.5,2452.4,4.07763823]
[1750935524623,10.7845,2452.9,2452.2,10.99290245]
[1750935524822,0.2032,2452.6,2452.4,4.07759231]
[1750935525353,0.2032,2452.6,2452.2,7.1182]
[1750935525666,0.2032,2452.6,2452.3,4.07768509]
[1750935525950,0.2032,2452.5,2452.3,4.07768509]
[1750935526259,0.2032,2452.5,2452.4,4.07763823]
[1750935527058,0.2032,2452.5,2452.3,4.07773004]
[1750935527857,0.2032,2452.3,2452.2,6.915]
[1750935528240,0.2032,2452.3,2451.7,10.0]
[1750935528436,0.2032,2452.1,2451.9,4.0784624]
[1750935528836,0.2032,2452.1,2452.0,4.07830342]
[1750935531456,7.98286293,2452.4,2452.1,4.07812041]
[1750935531762,0.2032,2452.3,2452.1,4.07812041]
[1750935532261,0.2032,2452.3,2452.1,4.0779897]
[1750935532630,0.2032,2452.3,2451.9,4.07846975]
[1750935533462,7.18056293,2452.6,2452.1,4.07806319]
[1750935533667,0.2032,2452.3,2452.1,10.99306319]
[1750935534369,0.2032,2452.3,2452.2,4.0779708]
[1750935535766,0.2032,2452.3,2452.1,4.07805609]
[1750935535965,0.2032,2452.3,2452.0,6.914]
[1750935536152,8.00246293,2452.2,2451.9,4.07834788]
[1750935536467,0.2032,2452.1,2452.0,4.07830342]
[1750935536937,0.2032,2452.1,2451.9,10.99237596]
[1750935537541,0.2032,2452.1,2451.7,0.2032]
[1750935537740,0.2032,2452.1,2451.7,11.19591437]
[1750935537939,0.2032,2452.1,2451.8,4.07863201]
[1750935538671,0.2032,2452.1,2451.7,11.19591255]
[1750935539170,7.18056293,2451.9,2451.7,0.2032]
[1750935539373,7.38376293,2451.9,2451.6,8.5692911]
[1750935540173,7.38376293,2451.9,2451.6,6.914]
[1750935540360,7.38376293,2451.9,2451.6,10.99295539]
[1750935541265,7.38376293,2451.9,2451.6,6.914]
[1750935541759,7.38376293,2451.9,2451.4,4.28240374]
[1750935541955,0.2032,2451.6,2451.5,10.99313522]
[1750935542474,0.2032,2451.8,2451.6,4.07890908]
[1750935544286,0.2032,2451.8,2451.5,6.914]
[1750935544492,0.2032,2451.8,2451.5,10.99307199]
[1750935544986,7.18056293,2451.8,2451.2,0.7763]
[1750935545194,0.2032,2451.6,2451.3,10.99336628]
[1750935545476,0.2032,2451.6,2451.3,6.914]
[1750935545680,0.2032,2451.6,2451.4,4.07930162]
[1750935545980,0.2032,2451.6,2451.5,4.07913522]
[1750935547149,7.97486293,2452.0,2451.6,4.07890725]
[1750935547475,7.97486293,2452.0,2451.7,4.07880246]
[1750935547476,0.2032,2451.8,2451.7,4.07880246]
[1750935547865,0.2032,2451.9,2451.8,4.07859309]
[1750935549973,0.82,2452.3,2452.0,4.07823475]
[1750935550175,0.2032,2452.2,2452.0,4.07823475]
[1750935552078,0.2032,2452.2,2452.1,4.0781371]
[1750935553478,0.2032,2452.2,2451.8,4.07862735]
[1750935553681,0.2032,2452.2,2452.0,4.07822445]
[1750935554582,0.2032,2452.2,2452.1,4.0781371]
[1750935554784,0.2032,2452.2,2451.9,4.07845834]
[1750935554983,0.2032,2452.2,2451.8,4.0785715]
[1750935555186,0.2032,2452.2,2452.0,4.07829287]
[1750935555478,0.2032,2452.2,2451.7,7.8992]
[1750935555646,0.2032,2452.2,2451.8,4.07861155]
[1750935555852,7.18056293,2452.1,2451.8,4.07861155]
[1750935556499,7.18056293,2452.1,2451.8,4.07861236]
[1750935556783,7.18056293,2452.1,2451.8,4.0786317]
[1750935556784,0.2032,2451.9,2451.8,4.0786317]
[1750935557183,0.2032,2451.9,2451.7,10.99070918]
[1750935557781,0.2032,2451.9,2451.8,4.0786361]
[1750935559605,0.2032,2451.9,2451.7,6.912]
[1750935561392,0.2032,2451.9,2451.7,10.99076696]
[1750935562089,0.2032,2451.9,2451.7,4.07876696]
[1750935563088,0.2032,2451.9,2451.6,10.98787946]
[1750935563389,0.2032,2451.9,2451.6,10.98782961]
[1750935563591,0.2032,2451.9,2451.6,6.909]
[1750935564717,0.2032,2451.9,2451.6,10.9879674]
[1750935564865,0.2032,2451.9,2451.7,4.07878763]
[1750935565275,0.2032,2451.9,2451.8,4.0786361]
[1750935566486,0.2032,2451.9,2451.6,10.98782006]
[1750935566690,0.2032,2451.9,2451.7,4.07878855]
[1750935566992,0.2032,2451.9,2451.7,4.07872976]
[1750935567577,0.2032,2451.9,2451.6,10.98790419]
[1750935567787,0.2032,2451.9,2451.6,10.98791843]
[1750935568094,0.2032,2451.9,2451.7,4.07876696]
[1750935568493,0.2032,2451.9,2451.7,4.07880246]
[1750935568691,0.2032,2451.9,2451.8,4.0786361]
[1750935568895,0.2032,2451.9,2451.7,4.07871064]
[1750935569391,0.2032,2451.9,2451.8,4.0786361]
[1750935571300,0.2032,2451.9,2451.7,4.0787248]
[1750935571906,0.2032,2451.9,2451.6,10.98794429]
[1750935572100,0.2032,2451.9,2451.7,4.0787654]
[1750935573105,0.2032,2451.9,2451.6,6.909]
[1750935573312,1.49490228,2451.9,2451.5,0.2032]
[1750935573506,0.2032,2451.6,2451.3,6.905]
[1750935573901,0.2032,2451.6,2451.2,5.0537372]
[1750935574103,0.2032,2451.6,2451.3,6.905]
[1750935574295,0.2032,2451.6,2451.3,10.98444663]
[1750935574504,0.2032,2451.6,2451.3,6.905]
[1750935574744,0.2032,2451.6,2451.4,4.0791773]
[1750935575212,0.2032,2451.6,2451.5,4.07913522]
[1750935575613,0.7848,2452.6,2451.5,25.81044263]
[1750935575822,0.7848,2452.6,2451.8,4.0786361]
[1750935576002,7.96536293,2452.6,2451.7,0.7507]
[1750935576315,0.7848,2452.2,2451.9,4.07841928]
[1750935576814,0.7848,2452.2,2452.0,4.07821039]
[1750935577712,0.7848,2452.2,2451.9,4.07844014]
[1750935578016,0.7848,2452.2,2452.0,4.07829838]
[1750935581922,0.7848,2452.2,2451.9,10.98038253]
[1750935582121,0.7848,2452.2,2452.0,4.07829681]
[1750935582720,0.7848,2452.2,2451.9,10.9804397]
[1750935582920,0.7848,2452.2,2452.0,4.07826775]
[1750935583811,0.7848,2452.2,2451.9,6.902]
[1750935584015,7.18056293,2452.0,2451.4,0.8274]
[1750935584216,7.18056293,2452.0,2451.6,4.07887865]
[1750935584382,7.18056293,2452.0,2451.4,0.8274]
[1750935584734,7.99216293,2451.7,2451.4,12.85328199]
[1750935585011,7.99216293,2451.7,2451.4,8.774]
[1750935585314,7.99216293,2451.7,2451.4,6.901]
[1750935585497,7.99216293,2451.7,2451.5,4.07913097]
[1750935585699,0.2032,2451.5,2451.4,10.98021269]
[1750935586023,0.2032,2451.5,2451.4,4.07921269]
[1750935586724,0.2032,2451.5,2451.3,10.98030377]
[1750935586929,0.2032,2451.5,2451.4,4.07930162]
[1750935588222,0.2032,2451.5,2451.1,0.85358513]
[1750935588455,7.18056293,2451.3,2451.1,4.07977622]
[1750935588724,7.38376293,2451.3,2451.1,10.97977622]
[1750935589027,7.38376293,2451.3,2450.8,2.6819]
[1750935589028,0.55,2450.7,2449.6,0.8089]
[1750935589229,7.95286293,2450.3,2449.6,0.8089]
[1750935589523,0.7723,2450.5,2449.6,4.89113357]
[1750935589930,0.7723,2450.5,2450.1,4.08144736]
[1750935590733,0.7723,2450.5,2450.1,4.08146244]
[1750935591610,0.7723,2450.5,2450.2,4.08126225]
[1750935591927,10.0,2450.6,2450.2,4.85859976]
[1750935593027,10.0,2450.6,2450.2,0.7774]
[1750935593235,9.05356293,2450.7,2450.2,0.7774]
[1750935593236,0.7532,2450.8,2450.5,4.08079983]
[1750935593400,10.0,2450.7,2450.5,4.08079983]
[1750935593834,0.7532,2450.8,2450.2,4.85863573]
[1750935594136,0.55,2450.9,2450.7,4.0804668]
[1750935594334,10.0,2450.8,2450.7,4.0804668]
[1750935594504,0.7535,2451.0,2450.8,4.08030031]
[1750935594700,0.7535,2451.0,2450.9,4.08013382]
[1750935594906,0.7535,2451.0,2450.8,4.08022698]
[1750935595407,10.0,2451.1,2450.9,4.08013382]
[1750935595805,10.0,2451.1,2450.8,4.08020508]
[1750935596004,10.0,2451.1,2450.9,4.0800726]
[1750935596509,10.7995,2451.2,2450.9,4.0800726]
[1750935597830,10.7995,2451.2,2450.6,0.7901]
[1750935597999,10.7995,2451.2,2451.0,4.07985061]
[1750935598203,10.73837629,2451.3,2451.1,4.0798009]
[1750935598642,10.73837629,2451.3,2450.8,4.0802198]
[1750935598847,10.73837629,2451.3,2451.0,4.07989959]
[1750935599008,0.2032,2451.1,2451.0,4.07989959]
[1750935599350,1.0074,2451.1,2450.6,4.08049359]
[1750935599507,0.8042,2451.1,2450.7,4.08038761]
[1750935599703,0.204,2450.9,2450.7,4.08038761]
[1750935599920,0.204,2450.9,2450.6,4.08057395]
[1750935600331,0.204,2450.9,2450.8,4.08030031]
[1750935602326,0.204,2450.9,2450.6,4.08056625]
[1750935602938,0.204,2450.9,2450.7,4.08044969]
[1750935603966,0.204,2450.9,2450.6,4.08055345]
[1750935604823,0.204,2450.9,2218.8,0.47534204]
[1750935604824,7.18056293,2450.7,2450.1,0.8065]
[1750935605029,0.204,2450.6,2450.3,4.08111277]
[1750935605437,0.204,2450.6,2450.4,4.0809536]
[1750935605642,0.204,2450.6,2450.3,4.08111266]
[1750935606244,0.204,2450.6,2450.2,4.28520021]
[1750935606464,0.204,2450.6,2450.3,4.08110941]
[1750935606667,0.204,2450.6,2450.2,4.28520229]
[1750935607167,0.204,2450.6,2450.3,4.08112708]
[1750935607342,0.204,2450.6,2450.3,4.08098261]
[1750935607549,0.204,2450.6,2450.2,4.28519787]
[1750935608256,0.204,2450.6,2450.3,4.08110742]
[1750935608452,0.204,2450.6,2450.2,0.204]
[1750935608763,10.0,2451.4,2450.7,4.08038157]
[1750935608764,0.204,2450.8,2450.7,4.08038157]
[1750935609268,0.204,2450.8,2450.4,7.104]
[1750935609466,7.18056293,2450.5,2450.0,4.0816187]
[1750935609670,0.204,2450.2,2449.8,5.08868271]
[1750935609872,0.204,2450.2,2449.8,1.0068]
[1750935610169,0.204,2450.4,2450.1,4.08146045]
[1750935611048,0.204,2450.4,2450.1,4.08132033]
[1750935611245,0.204,2450.4,2450.2,4.08128267]
[1750935611540,0.204,2450.4,2450.1,4.08136828]
[1750935611947,0.204,2450.4,2450.1,4.08133905]
[1750935612970,0.204,2450.4,2450.0,4.08155957]
[1750935613155,7.18056293,2450.5,2449.8,0.8028]
[1750935613356,0.204,2450.2,2449.8,5.08869958]
[1750935613562,10.8328,2450.4,2449.7,4.08206214]
[1750935613758,0.204,2450.0,2449.7,4.08206214]
[1750935614074,0.204,2450.0,2449.8,4.08193643]
[1750935614373,0.204,2450.0,2449.7,4.08205279]
[1750935614675,0.204,2450.0,2449.8,4.08192436]
[1750935614873,0.204,2450.0,2449.9,4.08179925]
[1750935615075,0.8328,2450.4,2449.6,7.6704]
[1750935615244,1.0368,2450.4,2450.0,4.08160155]
[1750935615667,1.0368,2450.4,2450.1,4.08145256]
[1750935616180,0.204,2450.4,2450.2,4.08129271]
[1750935616375,0.204,2450.4,2450.3,4.08113292]
[1750935616580,7.18056293,2450.9,2450.3,4.08113292]
[1750935616581,0.204,2450.5,2450.3,4.08113292]
[1750935616878,0.204,2450.5,2450.2,4.08121636]
[1750935617747,0.204,2450.5,2450.1,4.28536592]
[1750935617977,0.204,2450.5,2450.2,4.08128611]
[1750935618347,0.204,2450.5,2450.1,4.28535043]
[1750935618549,0.204,2450.5,2450.2,4.08120062]
[1750935618848,0.204,2450.5,2450.3,4.08097329]
[1750935619672,0.204,2450.5,2450.3,4.08103516]
[1750935619982,0.204,2450.5,2450.4,4.08096637]
[1750935626583,0.7506,2451.1,2450.8,4.08028656]
[1750935626755,0.204,2450.9,2450.7,4.08034334]
[1750935626956,0.204,2450.9,2450.7,4.08030749]
[1750935627157,0.204,2450.9,2450.8,4.08030031]
[1750935629392,0.204,2450.9,2450.7,4.08036191]
[1750935630378,0.204,2450.9,2450.7,4.08038041]
[1750935635004,0.204,2450.9,2450.5,6.897]
[1750935635374,0.204,2450.9,2450.5,10.97768549]
[1750935635575,0.204,2450.9,2450.6,4.08061252]
[1750935636276,0.204,2450.9,2450.5,10.97771116]
[1750935636678,0.204,2450.9,2450.5,6.897]
[1750935636679,1.81351629,2450.9,2450.5,6.897]
[1750935637000,0.204,2450.8,2450.5,6.897]
[1750935637511,0.204,2450.8,2450.5,10.9777998]
[1750935638109,0.204,2450.8,2450.6,4.08062405]
[1750935638509,0.204,2450.8,2450.5,10.97771469]
[1750935639400,0.204,2450.8,2450.5,6.897]
[1750935640296,0.204,2450.8,2450.5,10.97778409]
[1750935642113,0.204,2450.8,2450.5,6.897]
[1750935642310,0.204,2450.8,2450.7,4.0804668]
[1750935643295,0.7506,2451.1,2450.7,4.0804668]
[1750935643616,0.204,2450.9,2450.8,4.08030031]
[1750935643812,0.7506,2451.1,2450.7,4.0804668]
[1750935644019,0.2032,2451.1,2451.0,4.07996736]
[1750935644824,0.2032,2451.1,2450.9,4.08006876]
[1750935645315,0.2032,2451.1,2450.8,10.97024147]
[1750935645316,0.2032,2451.1,2451.0,4.07996736]
[1750935645505,0.2032,2451.1,2450.9,4.08005599]
[1750935645913,0.7678,2451.0,2450.6,6.889]
[1750935646110,0.204,2450.9,2450.5,10.96972207]
[1750935646291,0.204,2450.8,2450.5,10.96972207]
[1750935646619,0.204,2450.8,2450.5,4.08072207]
[1750935646923,0.204,2450.8,2450.4,10.96995892]
[1750935647619,7.18056293,2450.9,2450.1,0.7824]
[1750935647930,0.204,2450.3,2450.0,4.08162724]
[1750935648222,0.204,2450.3,2449.9,4.08173104]
[1750935649686,0.7959,2450.2,2449.8,4.08193633]
[1750935649890,0.204,2450.1,2449.8,4.08193633]
[1750935650090,0.204,2450.1,2449.6,5.06258051]
[1750935650313,0.204,2450.1,2449.7,6.888]
[1750935650507,0.204,2450.1,2449.7,10.97005624]
[1750935650916,0.204,2450.1,2449.8,4.08195429]
[1750935651291,0.204,2450.1,2449.9,4.08166039]
[1750935651622,0.55,2450.9,2450.2,4.08122278]
[1750935651623,0.204,2450.3,2450.2,4.08122278]
[1750935655609,0.204,2450.3,2450.1,4.08137811]
[1750935655932,0.204,2450.3,2450.2,4.08129948]
[1750935657835,0.7788,2450.7,2450.2,4.08129948]
[1750935658048,0.204,2450.6,2450.2,4.08129948]
[1750935658214,0.204,2450.6,2450.4,4.08096262]
[1750935659035,0.204,2450.6,2450.5,4.08079983]
[1750935659246,0.204,2450.6,2450.4,4.08087976]
[1750935659620,0.204,2450.6,2450.4,10.96587976]
[1750935659836,0.204,2450.6,2450.5,4.08079983]
[1750935661331,0.8106,2450.9,2450.5,4.08079983]
[1750935661653,0.204,2450.7,2450.5,4.08079983]
[1750935661849,0.204,2450.7,2450.6,4.08063331]
[1750935662144,8.96616272,2451.9,2451.2,4.07949825]
[1750935662145,0.7644,2451.4,2451.2,4.07949825]
[1750935662345,0.7858,2451.8,2451.4,4.07922634]
[1750935662544,0.2032,2451.4,2451.2,10.9635751]
[1750935662849,0.989,2451.4,2451.2,6.884]
[1750935663346,0.989,2451.4,2451.2,10.96361365]
[1750935664050,0.2032,2451.4,2451.3,4.07946803]
[1750935666318,0.2032,2451.4,2451.2,10.9635357]
[1750935666520,0.2032,2451.4,2451.2,6.884]
[1750935668049,0.2032,2451.4,2450.8,0.7996]
[1750935668230,0.2032,2451.4,2450.8,6.88]
[1750935668231,0.7765,2451.3,2450.8,6.88]
[1750935668424,0.204,2451.0,2450.8,6.88]
[1750935668925,0.204,2451.0,2450.8,10.96030028]
[1750935669125,0.204,2451.0,2450.9,4.08013382]
[1750935669427,0.204,2451.0,2450.9,4.85743382]
[1750935669634,0.2032,2451.2,2451.0,4.07983457]
[1750935670023,0.2032,2451.2,2451.1,4.0798009]
[1750935670450,0.2032,2451.4,2451.3,4.07944942]
[1750935670648,0.2032,2451.4,2451.1,6.88]
[1750935670850,0.2032,2451.4,2451.1,10.95973201]
[1750935671154,0.2032,2451.4,2451.2,4.07962592]
[1750935671749,0.2032,2451.4,2451.3,4.07946803]
[1750935672651,0.2032,2451.4,2451.1,6.88]
[1750935672823,0.2032,2451.4,2451.1,10.95971187]
[1750935673023,0.2032,2451.4,2451.1,6.88]
[1750935673354,0.7606,2451.3,2451.1,10.95972996]
[1750935674353,0.7606,2451.3,2451.2,4.07963446]
[1750935674923,0.2032,2451.4,2451.2,4.07963446]
[1750935675123,0.2032,2451.4,2451.3,4.07946803]
[1750935677326,0.2032,2451.4,2451.2,4.07953355]
[1750935677537,0.2032,2451.4,2451.2,4.07963446]
[1750935677738,0.2032,2451.4,2451.2,4.07947127]
[1750935677933,0.2032,2451.4,2451.3,4.07946803]
[1750935678254,10.8176,2451.8,2451.5,4.07908053]
[1750935678449,12.86616,2451.8,2451.5,4.07908053]
[1750935678654,12.86616,2451.8,2451.6,4.07896666]
[1750935678856,12.86616,2451.8,2451.7,4.07880246]
[1750935679026,10.8176,2451.8,2451.7,4.07880246]
[1750935679654,0.2032,2451.7,2451.6,4.07887092]
[1750935679972,10.8176,2451.8,2451.6,4.07887092]
[1750935680126,10.8176,2451.8,2451.7,4.07880246]
[1750935680456,0.8176,2451.8,2451.7,4.07880246]
[1750935681021,1.858,2451.9,2451.8,4.0786361]
[1750935681225,0.7975,2452.0,2451.4,10.9541935]
[1750935681457,0.2032,2451.7,2451.4,10.9541935]
[1750935681653,0.2032,2451.7,2451.6,4.07896883]
[1750935682631,0.2032,2451.7,2451.5,4.07906068]
[1750935683650,0.2032,2451.7,2451.6,4.07896883]
[1750935684166,0.2032,2451.7,2451.4,6.874]
[1750935684365,0.7975,2452.0,2451.5,4.07908413]
[1750935684564,0.2032,2451.6,2451.4,10.95321726]
[1750935684870,0.2032,2451.6,2451.5,4.07901117]
[1750935685071,0.2032,2451.6,2451.4,10.95320406]
[1750935685371,0.2032,2451.6,2451.5,4.07913522]
[1750935685535,0.2032,2451.6,2451.3,10.95132661]
[1750935685942,0.2032,2451.6,2451.5,4.07913522]
[1750935686670,0.2032,2451.6,2451.4,4.07923159]
[1750935687859,0.2032,2451.6,2451.5,4.07913522]
[1750935689662,0.2032,2451.6,2451.5,4.86003522]
[1750935695155,0.2032,2451.7,2451.6,4.07886621]
[1750935696278,0.2032,2451.7,2451.5,11.72699798]
[1750935696457,0.2032,2451.7,2451.6,4.07896883]
[1750935699765,0.2032,2451.7,2451.5,10.94609324]
[1750935700163,0.2032,2451.7,2451.6,4.07896883]
[1750935702278,0.7696,2451.6,2451.3,4.07932615]
[1750935702462,0.7696,2451.6,2451.4,4.07923303]
[1750935703067,0.7696,2451.6,2451.5,4.07913522]
[1750935703882,0.7696,2451.6,2451.4,4.07920145]
[1750935704079,0.7696,2451.6,2451.2,0.2032]
[1750935704246,2.408,2452.3,2450.7,14.08040074]
[1750935704247,0.2032,2451.3,2450.7,4.8633881]
[1750935704446,0.2032,2451.0,2450.8,10.94323381]
[1750935704876,0.2032,2451.0,2450.9,4.08013382]
[1750935710176,0.8024,2451.4,2451.3,4.07946803]
[1750935710481,1.0056,2451.4,2451.3,4.07946803]
[1750935711047,1.0056,2451.4,2451.2,4.07951225]
[1750935711663,1.0056,2451.4,2451.3,4.07946803]
[1750935712379,0.2032,2451.4,2451.3,4.07946803]
[1750935712683,0.804,2451.8,2451.7,4.07880246]
[1750935712854,2.654,2452.0,2451.7,4.07880246]
[1750935713053,10.0,2451.9,2451.7,4.07880246]
[1750935713582,10.0,2451.9,2451.3,0.83]
[1750935713783,0.2032,2451.7,2451.2,7.0622]
[1750935713987,0.2032,2451.3,2450.9,7.6111]
[1750935714163,0.9754,2451.2,2451.0,4.07995825]
[1750935714365,0.2032,2451.2,2451.1,4.0798009]
[1750935715080,1.85,2451.8,2451.4,4.07929897]
[1750935715289,0.3224,2451.7,2451.4,4.07929897]
[1750935715456,0.3224,2451.7,2451.4,4.07921887]
[1750935715655,0.2032,2451.5,2451.4,4.07921887]
[1750935716384,1.85,2451.8,2451.6,4.07889889]
[1750935716755,0.824,2451.9,2451.6,4.07889889]
[1750935717496,0.744,2451.9,2451.7,4.07864791]
[1750935718281,0.55,2452.5,2451.5,6.857]
[1750935718481,0.2032,2451.9,2451.5,7.0602]
[1750935718687,0.2032,2451.9,2451.8,4.0786361]
[1750935722493,0.7816,2452.6,2452.5,4.07747196]
[1750935722903,9.786,2453.0,2452.6,4.07730381]
[1750935722904,0.7816,2452.9,2452.6,4.07730381]
[1750935723093,0.2032,2452.6,2452.5,4.07747196]
[1750935723866,0.2032,2452.6,2452.5,10.93147196]
[1750935724070,0.1087537,2453.1,2453.0,4.07664084]
[1750935724288,0.1087537,2453.1,2452.9,4.07671824]
[1750935724491,0.1087537,2453.1,2453.0,4.07664084]
[1750935724797,0.2032,2452.9,2452.5,7.0572]
[1750935724980,0.2032,2452.9,2452.5,11.9070954]
[1750935725599,0.2032,2452.9,2452.5,7.8297]
[1750935726280,0.2032,2452.9,2452.5,11.90714027]
[1750935727397,0.2032,2452.9,2452.6,4.07729739]
[1750935728097,0.2032,2452.9,2452.6,4.07730571]
[1750935731805,0.2032,2452.9,2452.5,0.2032]
[1750935732001,0.2032,2452.8,2452.7,6.848]
[1750935732206,0.2032,2452.8,2452.3,0.9854]
[1750935732409,0.2032,2452.8,2451.7,9.784]
[1750935732410,0.2032,2452.6,2452.4,6.848]
[1750935732706,0.9316537,2453.1,2452.6,4.07716531]
[1750935733010,0.2032,2452.9,2452.7,4.0771329]
[1750935733610,0.2032,2452.9,2452.7,4.0771391]
[1750935734779,0.2032,2452.9,2452.6,4.83168641]
[1750935734980,0.2032,2452.9,2452.6,4.07728641]
[1750935735480,0.2032,2452.9,2452.6,10.92328641]
[1750935736913,0.2032,2452.9,2452.7,4.07711067]
[1750935737208,0.2032,2452.9,2452.6,10.92321109]
[1750935737510,0.2032,2452.9,2452.7,4.07712736]
[1750935737911,0.2032,2452.9,2452.6,10.92321109]
[1750935739212,0.2032,2452.9,2452.7,4.07699133]
[1750935739711,0.2032,2452.9,2452.7,4.07708821]
[1750935740811,0.2032,2452.9,2452.6,10.92321301]
[1750935741309,0.2032,2452.9,2452.7,4.07712502]
[1750935741514,0.2032,2452.9,2452.8,4.07697325]
[1750935744613,0.1087537,2453.1,2453.0,4.07664084]
[1750935745021,0.8234,2453.0,2452.8,4.07690457]
[1750935745312,0.8234,2453.0,2452.6,4.07723482]
[1750935745610,0.8234,2453.0,2452.7,4.07712461]
[1750935745820,0.1087537,2453.1,2453.0,4.07664084]
[1750935749617,0.1087537,2453.1,2452.9,4.07680047]
[1750935749618,0.1087537,2453.1,2452.9,10.91467166]